bitfinex/quotes_BTCUSD_20260307
["timestamp","ask_amount","ask_price","bid_price","bid_amount"]
[1772868374350,0.00170001,67705.0,67697.0,0.16959853]
[1772868374757,0.07554985,67705.0,67698.0,0.07385742]
[1772868375202,0.07554986,67705.0,67698.0,0.07385742]
[1772868375421,0.07554986,67705.0,67697.0,0.24345629]
[1772868375422,0.07554986,67705.0,67697.0,0.02857678]
[1772868375625,0.07406986,67705.0,67697.0,0.07385831]
[1772868375755,0.07554986,67705.0,67697.0,0.07385831]
[1772868376799,0.07554986,67705.0,67697.0,0.0002]
[1772868386087,0.00170001,67705.0,67697.0,0.0002]
[1772868414776,0.03193209,67705.0,67697.0,0.0002]
[1772868417299,0.03193209,67705.0,67694.0,0.07386178]
[1772868417300,0.03193209,67705.0,67694.0,0.03955472]
[1772868418242,0.00170001,67705.0,67696.0,0.02886372]
[1772868418606,0.00022001,67705.0,67696.0,0.02886372]
[1772868418807,0.00170001,67705.0,67696.0,0.02886372]
[1772868419556,0.00170001,67705.0,67697.0,0.07385851]
[1772868426112,0.02927614,67710.0,67697.0,0.07385851]
[1772868426113,0.0002155,67728.0,67701.0,1.95643]
[1772868426308,0.00148,67733.0,67709.0,0.29483684]
[1772868426501,0.10309135,67737.0,67713.0,0.14647057]
[1772868426502,0.00148,67732.0,67713.0,0.14647057]
[1772868426810,0.00148,67732.0,67721.0,0.02886372]
[1772868427304,0.10309156,67737.0,67721.0,0.02886372]
[1772868427305,0.00148,67731.0,67721.0,0.02886372]
[1772868427526,0.02927614,67736.0,67721.0,0.02886372]
[1772868427527,0.00148,67732.0,67721.0,0.02886372]
[1772868427677,0.00148,67732.0,67721.0,0.02869363]
[1772868427875,0.00148,67732.0,67722.0,0.1041065]
[1772868428537,0.00148,67732.0,67723.0,0.00022001]
[1772868429151,0.0015538,67732.0,67723.0,0.00022001]
[1772868429966,0.0015538,67732.0,67724.0,0.07382907]
[1772868433169,0.00148,67731.0,67725.0,0.03027525]
[1772868434273,0.00148,67731.0,67723.0,0.07382907]
[1772868434895,0.00148,67731.0,67723.0,0.10410432]
[1772868435914,0.00177381,67732.0,67725.0,0.03027525]
[1772868436242,0.00148,67733.0,67728.0,0.03027525]
[1772868436454,0.00148,67733.0,67730.0,0.03027525]
[1772868437284,0.00148,67733.0,67727.0,0.07382362]
[1772868437651,0.01163446,67739.0,67727.0,0.07382362]
[1772868437652,0.02999625,67738.0,67729.0,0.07382362]
[1772868438540,0.02999625,67738.0,67722.0,0.07383125]
[1772868438742,0.02999625,67738.0,67722.0,0.25065087]
[1772868440115,0.0738149,67737.0,67722.0,0.07390505]
[1772868440377,0.02999625,67735.0,67722.0,0.07390505]
[1772868440583,0.02999625,67733.0,67722.0,0.07390505]
[1772868440760,0.02999625,67733.0,67722.0,7.38e-05]
[1772868443257,0.00148,67734.0,67725.0,0.14647057]
[1772868443492,0.00148,67734.0,67727.0,0.03027525]
[1772868443733,0.00022001,67738.0,67722.0,7.38e-05]
[1772868443734,0.00148,67733.0,67729.0,0.03027525]
[1772868443895,0.00022001,67738.0,67731.0,0.03027525]
[1772868444215,0.00022001,67738.0,67722.0,7.38e-05]
[1772868444216,0.00148,67737.0,67734.0,0.14647057]
[1772868444430,0.00148,67737.0,67734.0,0.17674582]
[1772868444819,0.00022001,67738.0,67734.0,0.0738171]
[1772868445028,0.00170001,67738.0,67734.0,0.0738171]
[1772868445457,0.01163446,67739.0,67734.0,0.10409235]
[1772868445678,0.00148,67738.0,67734.0,0.0738171]
[1772868445927,0.00148,67738.0,67735.0,0.03027525]
[1772868446548,0.07380934,67743.0,67735.0,0.03027525]
[1772868446755,0.00148,67742.0,67735.0,0.03027525]
[1772868447107,0.00148,67741.0,67736.0,0.07381599]
[1772868447529,0.07380934,67743.0,67736.0,0.07381599]
[1772868447702,0.00148,67742.0,67736.0,0.07381599]
[1772868448151,0.00148,67741.0,67736.0,0.07381599]
[1772868448630,0.00148,67740.0,67733.0,0.07381896]
[1772868448830,0.03147625,67740.0,67733.0,0.07381896]
[1772868449362,0.00148,67740.0,67733.0,0.07381896]
[1772868449710,0.07380476,67747.0,67733.0,0.07381896]
[1772868449711,0.07402515,67746.0,67733.0,0.07381896]
[1772868449932,0.00148,67744.0,67733.0,0.07381896]
[1772868450369,0.00148,67744.0,67735.0,0.07381708]
[1772868450516,0.02999625,67742.0,67730.0,0.07382147]
[1772868452368,0.13872831,67740.0,67724.0,0.07382907]
[1772868452519,0.07381054,67741.0,67724.0,0.07382907]
[1772868452520,0.02999625,67737.0,67724.0,0.07382907]
[1772868452723,0.13872831,67738.0,67724.0,0.07382907]
[1772868452724,0.02999625,67735.0,67724.0,0.07382907]
[1772868454720,0.07381817,67734.0,67724.0,0.07382907]
[1772868457226,0.00148,67733.0,67724.0,0.07382907]
[1772868457595,0.07381633,67736.0,67724.0,0.07382907]
[1772868457846,0.00148,67735.0,67724.0,0.46867134]
[1772868458025,0.00148,67734.0,67724.0,0.29515472]
[1772868458231,0.00148,67734.0,67725.0,0.17371662]
[1772868458825,0.00148,67734.0,67725.0,0.17354655]
[1772868460426,0.00148,67734.0,67726.0,0.07382689]
[1772868463391,0.07381544,67737.0,67726.0,0.07382689]
[1772868463653,0.00148,67736.0,67727.0,0.0287478]
[1772868463877,0.00148,67735.0,67727.0,0.0287478]
[1772868464070,0.00148,67735.0,67726.0,0.18379571]
[1772868464275,0.00148,67735.0,67726.0,0.25995254]
[1772868464494,0.00148,67735.0,67726.0,0.03882689]
[1772868465403,0.00148,67735.0,67726.0,0.25995254]
[1772868465926,0.07529721,67735.0,67726.0,0.25995254]
[1772868466358,0.00148,67735.0,67726.0,0.25995254]
[1772868467257,0.00170001,67735.0,67726.0,0.25995254]
[1772868468175,0.00148,67734.0,67726.0,0.25995254]
[1772868468582,0.00148,67734.0,67727.0,0.14496882]
[1772868468792,0.00148,67734.0,67728.0,0.14496882]
[1772868468967,0.00148,67734.0,67728.0,0.17371662]
[1772868469831,0.00022001,67735.0,67729.0,0.07382362]
[1772868469987,0.00148,67734.0,67729.0,0.10257142]
[1772868470829,0.00148,67734.0,67729.0,0.07382362]
[1772868472428,0.00148,67734.0,67728.0,0.07382393]
[1772868474069,0.07529882,67734.0,67728.0,0.07382457]
[1772868474284,0.00148,67734.0,67728.0,0.07382457]
[1772868475997,0.00148,67734.0,67728.0,0.0736545]
[1772868476359,0.00148,67734.0,67728.0,0.29478015]
[1772868476965,0.00022001,67735.0,67728.0,0.29478015]
[1772868477152,0.00148,67733.0,67729.0,0.0287478]
[1772868477352,0.00148,67733.0,67729.0,0.24987345]
[1772868479202,0.00148,67733.0,67730.0,0.07382253]
[1772868480300,0.00148,67733.0,67730.0,0.22112565]
[1772868481200,0.00148,67733.0,67729.0,0.22112565]
[1772868481762,0.07529984,67733.0,67726.0,0.08722003]
[1772868482015,0.07529984,67733.0,67725.0,0.24778864]
[1772868483038,0.00148,67733.0,67725.0,0.24778864]
[1772868484019,0.00148,67733.0,67726.0,0.16011977]
[1772868484236,0.00148,67733.0,67727.0,0.02899225]
[1772868484436,0.00148,67733.0,67729.0,0.15991977]
[1772868484812,0.00148,67733.0,67726.0,0.0002]
[1772868484813,0.00148,67733.0,67730.0,0.13092752]
[1772868485111,0.00148,67733.0,67727.0,0.02899225]
[1772868485459,0.00148,67733.0,67729.0,0.13092752]
[1772868485664,0.00148,67733.0,67731.0,0.02899225]
[1772868486083,0.00022001,67738.0,67731.0,0.02899225]
[1772868486285,0.00148,67737.0,67732.0,0.13092752]
[1772868486576,0.00148,67737.0,67732.0,0.02899225]
[1772868486775,0.00148,67737.0,67728.0,0.10281696]
[1772868487122,0.00148,67737.0,67728.0,0.07382471]
[1772868489467,0.07380606,67746.0,67727.0,0.07382471]
[1772868489468,0.00148,67745.0,67729.0,0.03024422]
[1772868489762,0.00148,67745.0,67727.0,0.00148]
[1772868489763,0.00148,67745.0,67734.0,0.13092752]
[1772868489960,0.00148,67745.0,67735.0,0.03024422]
[1772868491759,0.07380727,67744.0,67736.0,0.07381599]
[1772868492659,0.07380727,67744.0,67736.0,0.07364591]
[1772868494263,0.00148,67748.0,67739.0,0.13092752]
[1772868494464,0.00148,67748.0,67742.0,0.03024422]
[1772868494666,0.00148,67748.0,67742.0,0.16117174]
[1772868494839,0.00148,67748.0,67744.0,0.13092752]
[1772868495049,0.00148,67748.0,67744.0,0.16117174]
[1772868495341,0.00148,67748.0,67745.0,0.03024422]
[1772868496110,0.00148,67749.0,67745.0,0.10404934]
[1772868496472,0.00148,67749.0,67744.0,0.07380704]
[1772868496674,0.07380291,67748.0,67741.0,0.07380978]
[1772868497051,0.02895327,67746.0,67732.0,0.07381942]
[1772868497975,0.07528291,67749.0,67732.0,0.07381942]
[1772868498191,0.07528291,67749.0,67734.0,0.10406239]
[1772868498391,0.10423618,67749.0,67734.0,0.10406239]
[1772868499743,0.07580182,67750.0,67736.0,0.03024422]
[1772868499946,0.00148,67748.0,67738.0,0.03024422]
[1772868500312,0.00148,67748.0,67739.0,0.07381272]
[1772868500822,0.07528362,67748.0,67739.0,0.07381272]
[1772868501415,0.00022001,67749.0,67739.0,0.07381272]
[1772868501618,0.00022001,67749.0,67740.0,0.03024422]
[1772868501819,0.00148,67748.0,67740.0,0.03024422]
[1772868502198,0.00148,67747.0,67740.0,0.03024422]
[1772868502396,0.00022001,67749.0,67743.0,0.03024422]
[1772868502608,0.00148,67748.0,67745.0,0.03024422]
[1772868502807,0.00148,67747.0,67745.0,0.03024422]
[1772868503006,0.00022001,67749.0,67745.0,0.03024422]
[1772868503344,0.00148,67747.0,67745.0,0.03024422]
[1772868503637,0.00148,67747.0,67743.0,0.13092752]
[1772868503832,0.00148,67747.0,67744.0,0.03024422]
[1772868504189,0.00148,67747.0,67741.0,0.07380945]
[1772868504583,0.00148,67747.0,67736.0,0.16117174]
[1772868504787,0.00148,67747.0,67737.0,0.13092752]
[1772868504980,0.00148,67747.0,67738.0,0.03024422]
[1772868506146,0.00148,67746.0,67739.0,0.13092752]
[1772868506315,0.0740186,67752.0,67742.0,0.03024422]
[1772868506517,0.00148,67751.0,67742.0,0.03024422]
[1772868506932,0.00148,67751.0,67743.0,0.07380836]
[1772868507131,0.07527968,67751.0,67743.0,0.07380836]
[1772868507336,0.07527968,67751.0,67741.0,0.07380902]
[1772868507663,0.02885789,67750.0,67741.0,0.07380902]
[1772868508000,0.02885789,67750.0,67742.0,0.07380945]
[1772868508192,0.02924779,67750.0,67742.0,0.07380945]
[1772868508457,0.02924779,67750.0,67739.0,0.07381253]
[1772868508790,0.02924779,67750.0,67738.0,0.07381325]
[1772868508966,0.02895327,67748.0,67734.0,0.07381817]
[1772868509739,0.00022001,67746.0,67734.0,0.07381817]
[1772868509942,0.00148,67745.0,67734.0,0.07381817]
[1772868510147,0.0017226,67745.0,67734.0,0.07381817]
[1772868510630,0.03067587,67745.0,67734.0,0.07381817]
[1772868511172,0.10448216,67745.0,67734.0,0.07381817]
[1772868511745,0.0017226,67745.0,67735.0,0.14398769]
[1772868513694,0.0017226,67745.0,67736.0,0.07381599]
[1772868514338,0.07552881,67745.0,67736.0,0.07381599]
[1772868516739,0.0017226,67745.0,67736.0,0.07381599]
[1772868517135,0.0017226,67745.0,67737.0,0.14398769]
[1772868517694,0.07552919,67745.0,67737.0,0.07381403]
[1772868517890,0.10448516,67745.0,67737.0,0.07381403]
[1772868518307,0.10448516,67745.0,67728.0,0.07382471]
[1772868518308,0.02895597,67744.0,67728.0,0.07382471]
[1772868519172,0.02919857,67744.0,67728.0,0.07382471]
[1772868519315,0.02919857,67744.0,67736.0,0.0002]
[1772868520014,0.02895597,67742.0,67736.0,0.0002]
[1772868520221,0.02919857,67742.0,67736.0,0.0002]
[1772868522165,0.02895597,67740.0,67736.0,0.0002]
[1772868522371,0.02895597,67738.0,67736.0,0.0002]
[1772868522941,0.02895597,67738.0,67729.0,0.0002]
[1772868523349,0.02905127,67738.0,67729.0,0.0002]
[1772868524309,0.0738149,67737.0,67729.0,0.0002]
[1772868524959,0.0738149,67737.0,67729.0,2.992e-05]
[1772868525175,0.0739102,67737.0,67729.0,2.992e-05]
[1772868526162,0.13998136,67735.0,67722.0,0.0002]
[1772868526357,0.13998136,67735.0,67717.0,0.0002]
[1772868526358,0.13943314,67732.0,67717.0,0.0002]
[1772868526583,0.03043597,67731.0,67717.0,0.0002]
[1772868526987,0.03043597,67731.0,67715.0,1e-08]
[1772868526988,0.13943314,67728.0,67715.0,1e-08]
[1772868527189,0.02895597,67726.0,67715.0,1e-08]
[1772868527393,0.13943314,67727.0,67715.0,1e-08]
[1772868527394,0.02895597,67724.0,67715.0,1e-08]
[1772868528479,0.02895597,67722.0,67715.0,1e-08]
[1772868530867,0.07383234,67721.0,67715.0,1e-08]
[1772868532739,0.02895597,67720.0,67715.0,1e-08]
[1772868532964,0.02895597,67718.0,67715.0,1e-08]
[1772868533166,0.00148,67719.0,67715.0,1e-08]
[1772868534289,0.00248,67719.0,67715.0,1e-08]
[1772868534900,0.07383561,67718.0,67715.0,1e-08]
[1772868536574,0.07483561,67718.0,67715.0,1e-08]
[1772868542200,0.07483561,67718.0,67711.0,1e-08]
[1772868542426,0.02887657,67717.0,67708.0,0.0002]
[1772868542632,0.02887657,67717.0,67708.0,0.00031529]
[1772868543590,0.07383779,67716.0,67708.0,0.00014519]
[1772868544955,0.02877745,67715.0,67708.0,0.00014519]
[1772868545743,0.07383997,67714.0,67708.0,0.00014519]
[1772868545947,0.00148,67713.0,67708.0,0.00014519]
[1772868546543,0.07383997,67714.0,67705.0,0.0001993]
[1772868546782,0.00148,67713.0,67705.0,0.0001993]
[1772868547600,0.00248,67713.0,67705.0,0.0001993]
[1772868547743,0.07384215,67712.0,67705.0,0.0001993]
[1772868549623,0.07384215,67712.0,67705.0,0.0003993]
[1772868550175,0.07484215,67712.0,67705.0,0.0003993]
[1772868553859,0.07484215,67712.0,67705.0,0.14089856]
[1772868554430,0.00148,67711.0,67707.0,0.14049926]
[1772868554631,0.00148,67711.0,67708.0,0.02752064]
[1772868554891,0.00148,67710.0,67708.0,0.02752064]
[1772868555021,0.00148,67710.0,67709.0,0.1680199]
[1772868556577,0.07383449,67721.0,67710.0,0.02752064]
[1772868556778,0.00148,67720.0,67713.0,0.14049926]
[1772868556994,0.00148,67719.0,67714.0,0.14049926]
[1772868557332,0.07389125,67721.0,67710.0,0.02752064]
[1772868557529,0.00148,67720.0,67710.0,0.02752064]
[1772868557744,0.00148,67720.0,67710.0,0.10136415]
[1772868557745,0.07383452,67719.0,67710.0,0.10136415]
[1772868557941,0.00022001,67716.0,67710.0,0.10136415]
[1772868558568,0.00148,67715.0,67711.0,0.1680199]
[1772868559015,0.00148,67714.0,67711.0,0.1680199]
[1772868559525,0.00148,67713.0,67711.0,0.1680199]
[1772868559904,0.00022001,67716.0,67711.0,0.1680199]
[1772868560110,0.00148,67712.0,67710.0,0.07384351]
[1772868560492,0.00148,67711.0,67710.0,0.07384351]
[1772868560694,0.00148,67711.0,67710.0,0.24186341]
[1772868561096,0.00148,67711.0,67709.0,0.14049926]
[1772868561422,0.00148,67711.0,67709.0,0.1680199]
[1772868561628,0.00148,67711.0,67710.0,0.02752064]
[1772868561793,0.00148,67711.0,67710.0,0.02735051]
[1772868563628,0.00148,67711.0,67710.0,0.16784977]
[1772868564061,0.00148,67711.0,67710.0,0.2416941]
[1772868564292,0.00148,67711.0,67710.0,0.07384433]
[1772868564578,0.00148,67711.0,67710.0,0.07404433]
[1772868564902,0.00125999,67711.0,67710.0,0.07404433]
[1772868565161,0.00022001,67721.0,67715.0,0.14049926]
[1772868565311,0.07382689,67726.0,67710.0,0.07404433]
[1772868565312,0.00148,67720.0,67718.0,0.02752064]
[1772868565517,0.00148,67719.0,67718.0,0.1680199]
[1772868565757,0.00148,67719.0,67718.0,0.02752064]
[1772868566762,0.07382689,67726.0,67718.0,0.02752064]
[1772868566943,0.00148,67725.0,67718.0,0.02752064]
[1772868568640,0.07382907,67724.0,67718.0,0.02793984]
[1772868569665,0.07382907,67724.0,67718.0,0.0004192]
[1772868571821,0.07404908,67724.0,67718.0,0.0004192]
[1772868577796,0.00148,67723.0,67718.0,0.0004192]
[1772868578610,0.00148,67723.0,67718.0,7.891e-05]
[1772868578611,0.07383125,67722.0,67718.0,7.891e-05]
[1772868580799,0.07383125,67722.0,67718.0,0.00027891]
[1772868581166,0.07383125,67722.0,67718.0,0.0298123]
[1772868581513,0.07383125,67722.0,67718.0,0.00027891]
[1772868581674,0.00148,67721.0,67718.0,0.00027891]
[1772868588537,0.07383125,67722.0,67718.0,0.00027891]
[1772868588742,0.00148,67721.0,67718.0,0.00027891]
[1772868593423,0.07383125,67722.0,67718.0,0.00027891]
[1772868593821,0.07531342,67721.0,67718.0,0.00027891]
[1772868594245,0.07531342,67721.0,67718.0,0.00010874]
[1772868594444,0.07383342,67721.0,67718.0,0.00010874]
[1772868594756,0.07531342,67721.0,67718.0,0.00010874]
[1772868594962,0.07404476,67728.0,67721.0,0.02953339]
[1772868595174,0.00148,67727.0,67721.0,0.02953339]
[1772868595391,0.00148,67727.0,67719.0,0.07383452]
[1772868595903,0.07382689,67726.0,67719.0,0.07383452]
[1772868596466,0.00022001,67724.0,67718.0,0.07394343]
[1772868597910,0.00022001,67724.0,67718.0,0.00010874]
[1772868600682,0.07383016,67723.0,67718.0,0.00010874]
[1772868600889,0.07383016,67723.0,67719.0,0.02819097]
[1772868601315,0.07383016,67723.0,67715.0,0.0001211]
[1772868602456,0.07383016,67723.0,67715.0,0.02831207]
[1772868602841,0.00148,67722.0,67715.0,0.0001211]
[1772868603041,0.00148,67722.0,67718.0,0.0002]
[1772868603242,0.07383234,67721.0,67711.0,0.0002]
[1772868603410,0.07383234,67721.0,67713.0,0.02819097]
[1772868603610,0.07383234,67721.0,67714.0,0.02819097]
[1772868604249,0.07383016,67723.0,67716.0,0.02819097]
[1772868604250,0.00148,67720.0,67716.0,0.02819097]
[1772868604752,0.07383234,67722.0,67716.0,0.02819097]
[1772868604953,0.07382851,67725.0,67717.0,0.02819097]
[1772868605179,0.07382689,67726.0,67718.0,0.02819097]
[1772868605396,0.07382639,67727.0,67718.0,0.02819097]
[1772868605590,0.00148,67725.0,67718.0,0.02819097]
[1772868605792,0.07382639,67727.0,67718.0,0.02819097]
[1772868606004,0.00148,67724.0,67718.0,0.02819097]
[1772868606317,0.07382639,67727.0,67718.0,0.02819097]
[1772868606524,0.0753106,67723.0,67718.0,0.02819097]
[1772868606732,0.0738306,67723.0,67718.0,0.02819097]
[1772868606945,0.00148,67722.0,67718.0,0.02819097]
[1772868608327,0.07531135,67722.0,67718.0,0.02819097]
[1772868608969,0.00148,67722.0,67718.0,0.02819097]
[1772868609367,0.00148,67722.0,67718.0,0.02839097]
[1772868609560,0.00022001,67722.0,67719.0,0.0283925]
[1772868609892,0.00148,67721.0,67719.0,0.0283925]
[1772868611002,0.00148,67720.0,67719.0,0.02822233]
[1772868611495,0.00022001,67722.0,67719.0,0.02822233]
[1772868611939,0.00148,67721.0,67719.0,0.02822233]
[1772868614058,0.00148,67721.0,67718.0,0.0002]
[1772868614364,0.07531242,67721.0,67718.0,0.0002]
[1772868615146,0.07531242,67721.0,67716.0,0.07383766]
[1772868615559,0.07531242,67721.0,67717.0,0.0283925]
[1772868615967,0.00148,67721.0,67717.0,0.0283925]
[1772868616161,0.00148,67721.0,67718.0,0.0283925]
[1772868616355,0.00148,67720.0,67718.0,0.0283925]
[1772868616593,0.00125999,67720.0,67718.0,0.0283925]
[1772868616892,0.00148,67719.0,67718.0,0.0283925]
[1772868617366,0.00022001,67722.0,67718.0,0.0283925]
[1772868617571,0.00148,67721.0,67718.0,0.0283925]
[1772868618291,0.00022001,67725.0,67719.0,0.0283925]
[1772868618495,0.00148,67723.0,67719.0,0.0283925]
[1772868619687,0.00022001,67725.0,67719.0,0.0283925]
[1772868619932,0.00148,67724.0,67719.0,0.0283925]
[1772868620685,0.00148,67724.0,67720.0,0.07383343]
[1772868621085,0.00148,67724.0,67720.0,0.10222593]
[1772868623817,0.00148,67724.0,67720.0,0.07383343]
[1772868624021,0.00148,67724.0,67717.0,0.07383581]
[1772868624307,0.07530993,67724.0,67716.0,0.07383779]
[1772868624853,0.07382993,67724.0,67719.0,0.0002]
[1772868625233,0.00148,67723.0,67719.0,0.0002]
[1772868626432,0.00022001,67728.0,67720.0,0.0283925]
[1772868626756,0.00148,67727.0,67720.0,0.0283925]
[1772868627621,1e-08,67732.0,67723.0,0.07383016]
[1772868627854,1e-08,67732.0,67724.0,0.0283925]
[1772868630184,1e-08,67732.0,67725.0,0.07382798]
[1772868631974,0.07529817,67735.0,67725.0,0.07382798]
[1772868631975,0.00148,67731.0,67727.0,0.0738258]
[1772868632271,0.00148,67730.0,67728.0,0.0283925]
[1772868632428,0.07381719,67735.0,67728.0,0.0283925]
[1772868632635,0.00148,67734.0,67728.0,0.0283925]
[1772868633333,0.00022001,67732.0,67728.0,0.0283925]
[1772868633552,0.00148,67731.0,67728.0,0.0283925]
[1772868633957,0.00022001,67732.0,67728.0,0.0283925]
[1772868634158,0.00148,67730.0,67729.0,0.10221612]
[1772868634797,0.00022001,67732.0,67730.0,0.0283925]
[1772868635004,0.00148,67731.0,67730.0,0.0283925]
[1772868640447,0.00170001,67731.0,67729.0,0.0002]
[1772868645434,0.00170001,67731.0,67729.0,0.02919917]
[1772868647440,0.00170001,67731.0,67729.0,0.10302172]
[1772868647642,0.00170001,67731.0,67730.0,0.02899917]
[1772868649871,0.00170001,67731.0,67729.0,0.0002]
[1772868650396,0.00170001,67731.0,67729.0,0.02919917]
[1772868650599,0.00148,67730.0,67729.0,0.02919917]
[1772868652458,0.00022001,67732.0,67731.0,0.02899917]
[1772868652657,0.00170001,67732.0,67731.0,0.02899917]
[1772868652854,0.00148,67732.0,67731.0,0.02899917]
[1772868654288,0.00148,67732.0,67731.0,0.10282061]
[1772868654704,0.00170001,67732.0,67731.0,0.10282061]
[1772868654918,0.00148,67732.0,67731.0,0.10282061]
[1772868656252,0.07415525,67738.0,67730.0,0.02899917]
[1772868656416,0.00148,67737.0,67730.0,0.02899917]
[1772868657775,0.07415525,67738.0,67730.0,0.02899917]
[1772868658010,0.00148,67737.0,67730.0,0.02899917]
[1772868658180,0.00148,67737.0,67731.0,0.07382144]
[1772868658403,0.00148,67736.0,67732.0,0.02784761]
[1772868658913,0.00148,67735.0,67732.0,0.02784761]
[1772868659295,0.07415525,67738.0,67732.0,0.10166777]
[1772868659524,0.00148,67734.0,67732.0,0.10166777]
[1772868659934,0.00148,67733.0,67732.0,0.10166777]
[1772868660293,0.00034111,67738.0,67732.0,0.10166777]
[1772868660501,0.00148,67737.0,67732.0,0.10166777]
[1772868660859,0.00034111,67738.0,67732.0,0.07382016]
[1772868661010,0.00148,67736.0,67732.0,0.07382016]
[1772868661226,0.00148,67736.0,67732.0,0.10166777]
[1772868661604,0.00148,67736.0,67732.0,0.07382016]
[1772868662205,0.00148,67736.0,67730.0,0.0002]
[1772868663661,0.00148,67735.0,67730.0,0.0002]
[1772868663862,0.00148,67734.0,67731.0,0.02784761]
[1772868665048,0.00022001,67737.0,67732.0,0.07382035]
[1772868665247,0.00148,67734.0,67732.0,0.07382035]
[1772868665852,0.00148,67734.0,67732.0,0.10166796]
[1772868666056,0.00148,67734.0,67733.0,0.02784761]
[1772868666356,0.00148,67734.0,67732.0,0.07382035]
[1772868667523,0.00148,67734.0,67732.0,0.02784761]
[1772868670373,0.00148,67735.0,67734.0,0.02746644]
[1772868670575,0.00148,67735.0,67733.0,0.07381926]
[1772868670978,0.00022001,67734.0,67733.0,0.07381926]
[1772868671402,0.00022001,67739.0,67733.0,0.07381926]
[1772868671617,0.00022001,67739.0,67733.0,0.1012857]
[1772868671618,0.0003165,67739.0,67733.0,0.1012857]
[1772868671820,0.00148,67738.0,67733.0,0.1012857]
[1772868672243,0.00148,67738.0,67733.0,0.07381926]
[1772868672889,0.00148,67738.0,67731.0,0.07382035]
[1772868673685,0.00148,67738.0,67730.0,0.07401926]
[1772868674470,0.00148,67738.0,67729.0,0.06577606]
[1772868674683,0.00148,67738.0,67723.0,0.0002]
[1772868674684,0.07381708,67735.0,67723.0,0.0002]
[1772868674871,0.14068957,67732.0,67723.0,0.0002]
[1772868675049,0.00148,67731.0,67723.0,0.0002]
[1772868679661,0.00148,67731.0,67718.0,0.07383521]
[1772868679662,0.11407057,67728.0,67718.0,0.07383521]
[1772868679892,0.14098765,67728.0,67718.0,0.07383521]
[1772868680496,0.11407057,67728.0,67718.0,0.07383521]
[1772868680708,0.07530183,67731.0,67716.0,0.0002]
[1772868680709,0.11407057,67726.0,67716.0,0.0002]
[1772868680908,0.02682376,67724.0,67712.0,0.0002]
[1772868681083,0.00148,67723.0,67712.0,0.0002]
[1772868681564,0.00148,67723.0,67716.0,0.0738367]
[1772868682595,0.00148,67723.0,67715.0,0.0001211]
[1772868682771,0.00148,67723.0,67712.0,0.0002]
[1772868682772,0.10098732,67722.0,67712.0,0.0002]
[1772868683413,0.0271559,67721.0,67712.0,0.0002]
[1772868684817,0.027336,67721.0,67712.0,0.0002]
[1772868686805,0.10116842,67721.0,67712.0,0.0002]
[1772868690679,0.027336,67721.0,67712.0,0.0002]
[1772868696652,0.07401274,67721.0,67712.0,0.0002]
[1772868696875,0.0001801,67721.0,67712.0,0.0002]
[1772868699571,0.00040011,67721.0,67712.0,0.0002]
[1772868700378,0.00040011,67721.0,67712.0,0.02763801]
[1772868700591,0.02818791,67733.0,67714.0,0.02743801]
[1772868700592,0.00148,67720.0,67714.0,0.02743801]
[1772868700818,0.00148,67719.0,67715.0,0.02743801]
[1772868701125,0.00148,67718.0,67712.0,0.0002]
[1772868701326,0.00148,67717.0,67713.0,0.02743801]
[1772868701479,0.02818791,67727.0,67713.0,0.02743801]
[1772868701685,0.02818791,67727.0,67712.0,0.0002]
[1772868701686,0.02818791,67724.0,67712.0,0.0002]
[1772868702358,0.02818791,67724.0,67712.0,0.00025676]
[1772868704792,0.07383016,67723.0,67713.0,0.07384106]
[1772868709835,0.07383016,67723.0,67713.0,0.10127907]
[1772868710394,0.07383016,67723.0,67714.0,0.02743801]
[1772868711233,0.00148,67722.0,67716.0,0.02743801]
[1772868711633,0.00022001,67724.0,67716.0,0.02743801]
[1772868711634,0.00148,67721.0,67716.0,0.02743801]
[1772868711834,0.00148,67721.0,67715.0,0.07383888]
[1772868714117,0.07404356,67730.0,67717.0,0.02743801]
[1772868714323,0.00148,67727.0,67717.0,0.02743801]
[1772868714467,0.00148,67727.0,67715.0,0.07383888]
[1772868716124,0.07382689,67726.0,67714.0,0.07383888]
[1772868720760,0.0740469,67726.0,67714.0,0.07383888]
[1772868722458,0.0740469,67726.0,67714.0,0.09878889]
[1772868722645,0.00022001,67726.0,67714.0,0.09878889]
[1772868725142,0.00148,67727.0,67714.0,0.07383888]
[1772868725408,0.00022001,67739.0,67714.0,0.07383888]
[1772868725409,0.074201,67750.0,67720.0,0.02495001]
[1772868725598,0.074201,67750.0,67716.0,0.13459085]
[1772868725599,0.0003031,67742.0,67723.0,0.11669814]
[1772868725746,0.00148,67741.0,67726.0,0.02495001]
[1772868725951,0.00148,67741.0,67729.0,0.11669814]
[1772868726204,0.00148,67740.0,67732.0,0.02495001]
[1772868726397,0.0003031,67742.0,67734.0,0.02495001]
[1772868726598,0.00148,67741.0,67735.0,0.11669814]
[1772868726854,0.00148,67741.0,67738.0,0.02495001]
[1772868727052,0.0017831,67741.0,67738.0,0.02495001]
[1772868727258,0.0017831,67741.0,67740.0,0.02495001]
[1772868727680,0.01022876,67740.0,67726.0,0.07382623]
[1772868727880,0.07564494,67741.0,67715.0,0.07383886]
[1772868727881,0.01020208,67736.0,67718.0,0.07383561]
[1772868728116,0.11995669,67733.0,67718.0,0.07383561]
[1772868728321,0.10975461,67733.0,67718.0,0.07383561]
[1772868728532,0.11995669,67733.0,67718.0,0.07383561]
[1772868728743,0.0001618,67736.0,67719.0,0.02725768]
[1772868728935,0.00148,67732.0,67719.0,0.02725768]
[1772868729356,0.00148,67731.0,67723.0,0.02725768]
[1772868729555,0.00022001,67726.0,67723.0,0.02725768]
[1772868730329,0.00148,67731.0,67723.0,0.02725768]
[1772868730520,0.00148,67731.0,67723.0,0.02708755]
[1772868731462,0.00148,67730.0,67725.0,0.02725768]
[1772868731672,0.00148,67730.0,67727.0,0.02725768]
[1772868732023,0.00148,67730.0,67724.0,0.07382907]
[1772868732024,0.00148,67732.0,67728.0,0.11669814]
[1772868732228,0.00148,67732.0,67729.0,0.02725768]
[1772868732449,0.00148,67732.0,67730.0,0.02725768]
[1772868734199,0.00148,67732.0,67731.0,0.07382144]
[1772868734394,0.00148,67732.0,67731.0,0.10107912]
[1772868735002,0.00148,67732.0,67728.0,0.07382381]
[1772868735200,0.00148,67732.0,67723.0,0.07382983]
[1772868735201,0.18505507,67732.0,67723.0,0.07382983]
[1772868735402,0.01044005,67731.0,67722.0,0.07383125]
[1772868735578,0.01044005,67731.0,67720.0,0.07383246]
[1772868735779,0.01089617,67729.0,67717.0,0.07383591]
[1772868736001,0.07530046,67732.0,67717.0,0.07383591]
[1772868736002,0.01089617,67727.0,67717.0,0.07383591]